bitfinex-derivatives/quotes_SOLF0:USTF0_20260102
["timestamp","ask_amount","ask_price","bid_price","bid_amount"]
[1767365832851,0.33067494,128.89,128.82,6.9919]
[1767365833739,0.05090128,128.87,128.84,0.04749284]
[1767365833946,0.38157622,128.87,128.78,6.9942]
[1767365834257,0.33067494,128.87,128.74,91.7]
[1767365834443,7.32157494,128.85,128.74,91.7]
[1767365834644,0.33067494,128.85,128.74,91.7]
[1767365835045,0.05002468,128.81,128.72,108.8504]
[1767365835251,0.05145107,128.78,128.72,108.8504]
[1767365835550,6.9911,128.85,128.74,108.8379]
[1767365835855,0.33067494,128.84,128.74,108.8379]
[1767365836649,0.05886391,128.8,128.78,0.05145107]
[1767365836847,0.05886391,128.8,128.73,91.7]
[1767365837349,0.05886391,128.8,128.74,6.9964]
[1767365838352,0.38953885,128.8,128.72,6.9976]
[1767365838546,0.33067494,128.8,128.72,6.9976]
[1767365838856,0.05019462,128.77,128.72,6.9976]
[1767365839169,0.05019462,128.77,128.69,91.72]
[1767365839461,0.33067494,128.8,128.7,108.8725]
[1767365840452,0.05428554,128.76,128.74,0.051792]
[1767365841252,0.33067494,128.8,128.74,0.051792]
[1767365842154,0.38848569,128.78,128.71,6.9981]
[1767365842348,0.38848569,128.78,128.65,108.9108]
[1767365842548,0.33067494,128.76,128.67,7.0002]
[1767365842750,92.03067494,128.76,128.67,7.0002]
[1767365842947,0.33067494,128.75,128.67,7.0002]
[1767365843447,0.33067494,128.75,128.7,0.05428554]
[1767365843448,0.05771534,128.72,128.7,0.05428554]
[1767365843857,0.33067494,128.78,128.7,0.05428554]
[1767365844062,0.33067494,128.78,128.68,108.8863]
[1767365844265,0.33067494,128.77,128.69,6.9991]
[1767365845161,0.33067494,128.73,128.64,91.76]
[1767365845463,7.32817494,128.73,128.65,7.0014]
[1767365845859,7.32817494,128.73,128.64,91.76]
[1767365845860,0.33067494,128.73,128.64,108.9205]
[1767365846058,92.06089356,128.76,128.65,108.9131]
[1767365846364,92.06089356,128.76,128.67,0.0496198]
[1767365846554,92.06089356,128.76,128.65,108.9131]
[1767365847164,0.05485994,128.72,128.69,0.05903633]
[1767365847460,0.05485994,128.72,128.62,116.19197567]
[1767365847461,0.3957535,128.72,128.62,108.9338]
[1767365847660,0.34089356,128.72,128.6,200.7116]
[1767365847855,0.34089356,128.7,128.6,91.76]
[1767365848267,0.34089356,128.7,128.59,108.9605]
[1767365848464,0.0504476,128.66,128.63,0.05217854]
[1767365849059,0.34089356,128.7,128.63,0.05217854]
[1767365849260,92.08089356,128.73,128.63,0.05217854]
[1767365849466,0.34089356,128.72,128.61,108.9459]
[1767365849769,7.33889356,128.72,128.61,108.9459]
[1767365850072,0.3903052,128.68,128.58,11.88130206]
[1767365850271,0.34089356,128.68,128.58,11.88130206]
[1767365851061,0.05348513,128.64,128.62,0.05052219]
[1767365851870,0.34089356,128.68,128.62,0.05052219]
[1767365852071,6.9986,128.71,128.62,0.05052219]
[1767365852072,91.76,128.7,128.62,0.05052219]
[1767365852273,92.10089356,128.7,128.59,108.9612]
[1767365852870,7.33849356,128.73,128.63,0.05633955]
[1767365853171,0.34089356,128.73,128.63,200.7288]
[1767365853471,0.32403675,128.72,128.63,91.8]
[1767365854173,0.04959895,128.69,128.66,0.04925672]
[1767365854370,0.05283643,128.69,128.66,0.05825117]
[1767365854569,98.7566,128.75,128.66,0.05825117]
[1767365854570,0.32403675,128.76,128.67,91.82]
[1767365854776,0.32403675,128.76,128.66,108.9034]
[1767365854970,0.32403675,128.75,128.63,200.749]
[1767365855176,0.32403675,128.75,128.64,108.9228]
[1767365855579,0.0507282,128.71,128.68,0.05227097]
[1767365856776,0.37476495,128.71,128.59,108.9587]
[1767365856981,0.32403675,128.69,128.56,116.24607567]
[1767365857176,0.32403675,128.69,128.57,91.82]
[1767365857177,0.32403675,128.68,128.57,91.82]
[1767365857379,7.32473675,128.67,128.57,91.82]
[1767365857684,0.32403675,128.67,128.57,91.82]
[1767365857885,0.05930305,128.64,128.61,0.05567544]
[1767365860993,0.32403675,128.69,128.61,0.05567544]
[1767365861286,7.0001,128.68,128.59,91.84]
[1767365861488,0.32403675,128.68,128.58,11.88130206]
[1767365861786,0.32403675,128.67,128.58,11.88130206]
[1767365861975,0.05009151,128.64,128.62,0.05954412]
[1767365863178,0.05009151,128.64,128.58,11.88130206]
[1767365864087,0.05009151,128.64,128.6,0.05122635]
[1767365865874,0.32403675,128.67,128.6,7.05532635]
[1767365866990,0.05019683,128.65,128.6,7.05532635]
[1767365868480,0.05019683,128.65,128.61,7.0037]
[1767365868685,0.05019683,128.65,128.6,0.05122635]
[1767365869190,7.32343675,128.7,128.6,0.05122635]
[1767365869386,7.32343675,128.7,128.59,108.9615]
[1767365869892,7.32343675,128.7,128.58,120.85270206]
[1767365869893,0.32403675,128.7,128.58,120.85270206]
[1767365870189,0.32403675,128.7,128.63,0.0588406]
[1767365870577,7.0,128.68,128.63,0.0588406]
[1767365870782,0.32403675,128.69,128.63,0.0588406]
[1767365871084,7.0003,128.68,128.63,0.0588406]
[1767365871289,0.05499725,128.67,128.63,0.0588406]
[1767365872192,0.32403675,128.66,128.58,11.88130206]
[1767365872992,7.0017,128.65,128.59,7.0049]
[1767365873380,0.05923798,128.63,128.61,0.05553762]
[1767365873990,0.05923798,128.63,128.58,11.88130206]
[1767365874292,0.05923798,128.63,128.59,7.0048]
[1767365874695,0.05923798,128.63,128.58,11.88130206]
[1767365875089,92.14403675,128.69,128.59,0.04986739]
[1767365875289,0.32403675,128.68,128.58,11.88130206]
[1767365875594,7.0011,128.66,128.6,7.0043]
[1767365875797,7.32513675,128.66,128.6,7.0043]
[1767365876000,0.32403675,128.69,128.59,108.9645]
[1767365876193,7.32353675,128.69,128.62,7.0032]
[1767365877096,0.05614289,128.67,128.64,0.05947156]
[1767365879393,0.39480163,128.67,128.59,7.0046]
[1767365879595,0.33865874,128.67,128.59,7.0046]
[1767365880194,0.33865874,128.67,128.58,212.73230206]
[1767365880397,0.05347049,128.64,128.61,0.05899033]
[1767365880595,7.0005,128.68,128.61,0.05899033]
[1767365880795,0.33865874,128.69,128.61,7.06269033]
[1767365880989,0.33865874,128.69,128.61,7.0037]
[1767365881392,98.8194,128.7,128.6,108.9537]
[1767365881591,0.05873317,128.66,128.64,0.05063647]
[1767365882098,0.33865874,128.7,128.64,0.05063647]
[1767365882297,0.33865874,128.73,128.64,0.05063647]
[1767365882489,5.80914941,128.72,128.63,4.48078791]
[1767365882692,0.33865874,128.75,128.65,4.48078791]
[1767365882894,0.05863561,128.71,128.69,0.05337205]
[1767365884500,0.05863561,128.71,128.64,91.86]
[1767365884695,0.33865874,128.73,128.64,200.7797]
[1767365884896,0.33865874,128.76,128.65,113.39318791]
[1767365885097,0.33865874,128.76,128.64,200.7797]
[1767365885098,5.81612323,128.75,128.68,108.8882]
[1767365885403,0.04951446,128.73,128.7,0.05806138]
[1767365885702,7.33335874,128.78,128.7,7.05156967]
[1767365885995,6.61480543,128.79,128.69,113.36118791]
[1767365886512,6.61480543,128.79,128.72,6.9977]
[1767365886801,0.05514788,128.77,128.74,0.05436595]
[1767365888694,0.39380662,128.77,128.68,91.86]
[1767365888895,0.33865874,128.77,128.68,91.86]
[1767365889300,7.33395874,128.77,128.69,6.9993]
[1767365889705,0.05440713,128.74,128.72,0.05047412]
[1767365892598,0.05440713,128.74,128.68,6.9996]
[1767365892900,0.05440713,128.74,128.66,91.84]
[1767365893106,0.33865874,128.75,128.66,91.84]
[1767365893698,0.05764206,128.72,128.69,0.05744058]
[1767365899507,91.78,128.76,128.69,7.05674058]
[1767365900102,0.33865874,128.73,128.69,0.05744058]
[1767365900510,0.0551535,128.72,128.69,0.05744058]
[1767365901910,0.33865874,128.76,128.7,6.9989]
[1767365902612,0.33865874,128.76,128.67,205.19598791]
[1767365902613,0.33865874,128.76,128.68,108.8881]
[1767365902805,0.33865874,128.76,128.71,0.05166498]
[1767365903309,6.9946,128.78,128.71,0.05166498]
[1767365903518,0.33865874,128.79,128.69,113.36028791]
[1767365903911,0.05024049,128.75,128.73,0.05733945]
[1767365904503,0.33865874,128.78,128.73,0.05733945]
[1767365905411,7.33185874,128.81,128.73,0.05733945]
[1767365905601,0.05344182,128.77,128.76,0.05289375]
[1767365905801,0.0547488,128.78,128.76,0.05289375]
[1767365906611,0.0547488,128.78,128.7,91.82]
[1767365906612,0.36912789,128.78,128.7,91.82]
[1767365906807,0.31437909,128.78,128.7,91.82]
[1767365907209,0.31437909,128.78,128.71,6.9979]
[1767365907611,0.05109742,128.76,128.73,0.05945259]
[1767365910214,7.30827909,128.8,128.73,7.05655259]
[1767365910413,0.31437909,128.79,128.73,7.05655259]
[1767365910615,0.31437909,128.78,128.73,0.05945259]
[1767365911110,0.05118719,128.77,128.73,0.05945259]
[1767365911317,0.36556628,128.77,128.73,0.05945259]
[1767365911714,0.31437909,128.76,128.68,91.82]
[1767365912621,0.05061211,128.73,128.71,0.0542367]
[1767365913419,0.31437909,128.76,128.71,7.0525367]
[1767365914519,0.05164764,128.75,128.71,0.0542367]
[1767365916123,0.31437909,128.79,128.71,0.0542367]
[1767365916324,0.31437909,128.79,128.7,4.48078791]
[1767365916523,0.31437909,128.79,128.7,96.28078791]
[1767365916716,0.31437909,128.81,128.73,6.9971]
[1767365917123,0.05860159,128.78,128.76,0.05554673]
[1767365918232,0.31437909,128.81,128.76,0.05554673]
[1767365918427,7.30637909,128.83,128.76,0.05554673]
[1767365918614,0.31437909,128.83,128.76,0.05554673]
[1767365918814,0.31437909,128.81,128.76,0.05554673]
[1767365919027,0.31437909,128.81,128.74,6.9962]
[1767365919230,0.05004189,128.79,128.76,0.05070102]
[1767365923221,0.31437909,128.83,128.76,0.05070102]
[1767365923425,0.31437909,128.83,128.73,96.28078791]
[1767365924125,0.31437909,128.83,128.73,205.12358791]
[1767365924330,0.31437909,128.83,128.77,0.05575871]
[1767365925333,0.05299329,128.81,128.77,0.05575871]
[1767365925738,0.31437909,128.86,128.77,0.05575871]
[1767365925938,0.31437909,128.86,128.76,108.8193]
[1767365926123,7.30507909,128.86,128.79,6.9939]
[1767365926324,0.31437909,128.86,128.77,108.8089]
[1767365926725,0.04195449,128.83,128.8,0.04945753]
[1767365927130,92.05437909,128.89,128.8,0.04945753]
[1767365927333,92.05437909,128.89,128.79,205.05418791]
[1767365927530,0.31437909,128.89,128.79,113.27418791]
[1767365927730,0.31437909,128.89,128.8,91.78]
[1767365927934,0.31437909,128.89,128.82,6.9923]
[1767365928131,0.31437909,128.89,128.84,0.04932574]
[1767365928333,0.31437909,128.89,128.79,91.78]
[1767365928534,7.30357909,128.88,128.81,6.9928]
[1767365928736,0.31437909,128.88,128.81,6.9928]
[1767365928939,0.31437909,128.88,128.79,91.78]
[1767365929436,0.04932574,128.85,128.82,0.05685716]
[1767365931037,0.31437909,128.88,128.82,7.04905716]
[1767365931931,92.03437909,128.91,128.83,6.9915]
[1767365932140,0.31437909,128.9,128.86,0.05372777]
[1767365933144,7.35680686,128.89,128.81,6.9925]
[1767365933341,7.30307909,128.89,128.81,6.9925]
[1767365934035,7.30307909,128.89,128.82,6.9923]
[1767365934234,0.05372777,128.87,128.84,0.0540461]
[1767365936643,0.05372777,128.87,128.84,7.0452461]
[1767365936944,0.05372777,128.87,128.85,6.9907]
[1767365937148,0.31943062,128.92,128.85,6.9907]
[1767365938039,0.31943062,128.92,128.87,0.05623998]
[1767365938239,7.30713062,128.91,128.87,0.05623998]
[1767365938440,0.31943062,128.9,128.81,91.74]
[1767365939444,0.05569586,128.87,128.84,0.05126815]
[1767365940642,0.05569586,128.87,128.79,108.7932]
[1767365940643,0.37512648,128.87,128.8,6.993]
[1767365940842,0.31943062,128.87,128.8,6.993]
[1767365941646,0.04913673,128.85,128.82,0.05446241]
[1767365942639,0.04913673,128.85,128.82,7.04676241]
[1767365942839,0.04913673,128.85,128.82,0.05446241]
[1767365944942,7.30853062,128.89,128.82,0.05446241]
[1767365945450,7.30853062,128.89,128.82,7.04686241]
[1767365945850,0.0583714,128.87,128.82,0.05446241]
[1767365946550,0.31943062,128.92,128.82,108.82276241]
[1767365946749,7.30643062,128.92,128.85,6.9905]
[1767365946944,7.30643062,128.92,128.81,108.7755]
[1767365946945,0.31943062,128.92,128.81,200.5155]
[1767365947343,0.31943062,128.92,128.81,91.74]
[1767365947547,0.31943062,128.89,128.85,0.05535912]
[1767365947853,0.31943062,128.89,128.76,116.07202078]
[1767365948147,7.30813062,128.89,128.82,6.9924]
[1767365948639,0.31943062,128.88,128.82,6.9924]
[1767365948840,0.05118056,128.86,128.84,0.04895943]
[1767365950452,0.05118056,128.86,128.8,6.9931]
[1767365950748,0.31943062,128.88,128.8,6.9931]
[1767365951252,7.30913062,128.87,128.8,6.9931]
[1767365951451,0.05334275,128.85,128.82,0.05136336]
[1767365952150,0.31943062,128.92,128.82,0.05136336]
[1767365952347,0.31943062,128.92,128.81,108.7747]
[1767365952546,6.9875,128.91,128.84,6.9912]
[1767365953051,0.04948083,128.89,128.86,0.05384844]
[1767365954342,0.36891145,128.89,128.82,6.9919]
[1767365954945,0.36891145,128.89,128.83,6.9917]
[1767365955144,0.31943062,128.89,128.83,6.9917]
[1767365955449,0.04890285,128.87,128.85,0.05675776]
[1767365955648,0.05407702,128.87,128.85,0.05022657]
[1767365955956,0.31943062,128.92,128.85,0.05022657]
[1767365956943,0.04925225,128.9,128.85,0.05022657]
[1767365957347,0.36868287,128.9,128.85,0.05022657]
[1767365958257,7.35678287,128.9,128.85,0.05022657]
[1767365958556,0.31943062,128.89,128.76,108.819]
[1767365958762,0.31943062,128.89,128.77,91.72]
[1767365959253,7.30943062,128.87,128.8,6.9934]
[1767365959843,7.30943062,128.87,128.82,0.0572226]
[1767365959844,0.05558244,128.85,128.82,0.0572226]
[1767365961156,0.37501306,128.85,128.78,6.9941]
[1767365961349,0.31943062,128.85,128.78,6.9941]
[1767365962156,0.05960586,128.83,128.8,0.05827239]
[1767365965154,0.05960586,128.83,128.77,6.995]
[1767365966251,0.05960586,128.83,128.79,0.05245856]
[1767365967653,0.37316012,128.83,128.79,0.05245856]
[1767365967849,0.37316012,128.83,128.7,130.12012078]
[1767365968055,0.31355426,128.83,128.74,108.8378]
[1767365968858,0.0577311,128.8,128.77,0.04999612]
[1767365972261,0.0577311,128.8,128.77,7.04489612]
[1767365972462,0.0577311,128.8,128.77,0.04999612]
[1767365973466,0.37128536,128.8,128.77,0.04999612]
[1767365973658,0.37128536,128.8,128.71,108.8595]
[1767365973857,0.37128536,128.8,128.74,6.9966]
[1767365973858,0.31355426,128.8,128.74,6.9966]
[1767365974860,0.04975388,128.78,128.76,0.04972149]
[1767365976661,0.36330814,128.78,128.71,91.74]
[1767365977772,0.36330814,128.78,128.73,7.05366604]
[1767365977970,0.05305303,128.77,128.73,7.05366604]
[1767365979065,0.05305303,128.77,128.73,0.05646604]
[1767365979274,0.36660729,128.77,128.73,0.05646604]
[1767365981970,0.36660729,128.77,128.7,6.9984]
[1767365982170,0.36660729,128.77,128.71,6.9982]
[1767365982468,0.31355426,128.77,128.69,108.8782]
[1767365982877,0.31355426,128.77,128.72,7.05266698]
[1767365983079,0.31355426,128.77,128.72,0.05496698]
[1767365983968,0.0561545,128.76,128.72,0.05496698]
[1767365984780,0.0561545,128.76,128.72,7.05276698]
[1767365986381,0.0561545,128.76,128.72,0.05496698]
[1767365989084,0.36970876,128.76,128.72,0.05496698]
[1767365989384,0.0561545,128.76,128.72,0.05496698]
[1767365989988,0.31355426,128.83,128.73,108.8459]
[1767365990186,0.31355426,128.82,128.76,6.9955]
[1767365990484,0.31355426,128.82,128.72,2.60967551]
[1767365990683,203.10457551,128.84,128.75,6.996]
[1767365990684,0.31355426,128.81,128.75,6.996]
[1767365990885,0.05542353,128.79,128.77,0.05854609]
[1767365991287,0.36897779,128.79,128.73,6.9968]
[1767365991584,0.31355426,128.79,128.73,6.9968]
[1767365992181,0.04975711,128.77,128.75,0.05287045]
[1767366000389,7.33399738,128.81,128.75,0.05287045]
[1767366000695,0.34069738,128.81,128.73,111.45677551]
[1767366000986,92.08069738,128.86,128.75,2.60967551]
[1767366001287,0.34069738,128.85,128.74,91.8]
[1767366001483,0.05482053,128.81,128.78,0.05170036]
[1767366001682,0.05482053,128.81,128.78,0.05109166]
[1767366002592,0.34069738,128.85,128.79,6.994]
[1767366002793,0.34069738,128.85,128.78,1.66830331]
[1767366003291,0.34069738,128.85,128.78,8.66240331]
[1767366003987,0.34069738,128.88,128.8,1.72001894]
[1767366004190,0.34069738,128.88,128.82,1.66830331]
[1767366004390,0.34069738,128.91,128.82,1.66830331]
[1767366004691,0.34069738,128.91,128.84,1.66830331]
[1767366004893,0.34069738,128.91,128.82,1.66830331]
[1767366005091,0.05666814,128.88,128.85,0.05231328]
[1767366005294,0.05666814,128.88,128.85,0.05518197]
[1767366007285,0.05666814,128.88,128.85,1.72348528]
[1767366007593,0.34069738,128.9,128.85,1.72348528]
[1767366007792,0.34069738,128.9,128.85,0.05518197]
[1767366008091,0.34069738,128.92,128.85,1.72348528]
[1767366008395,0.34069738,128.92,128.85,1.66830331]
[1767366008596,0.05737332,128.9,128.87,0.05349483]
[1767366008797,7.32659738,128.94,128.87,1.72179814]
[1767366008994,7.32659738,128.94,128.87,1.66830331]
[1767366009194,0.34069738,128.94,128.87,1.66830331]
[1767366009494,0.34069738,128.94,128.87,6.9894]
[1767366009697,0.34069738,128.94,128.87,1.66830331]
[1767366009995,0.34069738,128.94,128.89,1.72759091]
[1767366010393,7.32529738,128.97,128.89,8.71599091]
[1767366010600,7.32529738,128.97,128.89,8.65670331]
[1767366011006,99.02419738,128.99,128.93,1.66830331]
[1767366011193,92.04069738,128.99,128.93,1.66830331]
[1767366011391,0.34069738,128.98,128.88,108.7137]
[1767366011590,0.34069738,128.98,128.91,1.66830331]
[1767366011790,0.34069738,128.98,128.86,200.4728]
[1767366011986,0.34069738,128.97,128.89,1.66830331]
[1767366012203,7.32519738,128.97,128.91,0.05742975]
[1767366012493,0.34069738,128.96,128.91,0.05742975]
[1767366012690,7.32569738,128.96,128.91,0.05742975]
[1767366013095,202.34000069,128.99,128.91,0.05742975]
[1767366013293,92.04069738,128.99,128.94,0.05213176]
[1767366013495,92.04069738,128.99,128.95,0.05321787]
[1767366013694,0.34069738,128.97,128.89,1.66830331]
[1767366014192,0.34069738,128.97,128.91,1.66830331]
[1767366014592,8.65180331,128.99,128.91,1.66830331]
[1767366014895,0.34069738,128.99,128.93,1.72146979]
[1767366015403,0.34069738,128.99,128.93,0.05316648]
[1767366017601,0.34069738,128.99,128.93,7.03946648]
[1767366017800,0.34069738,128.99,128.93,0.05316648]
[1767366018603,7.32419738,128.99,128.93,0.05316648]
[1767366018802,0.34069738,128.98,128.93,0.05316648]
[1767366018996,0.34069738,128.98,128.94,0.0502662]
[1767366019303,92.02069738,129.01,128.94,0.0502662]
[1767366019493,0.34069738,129.0,128.94,0.0502662]
[1767366020593,0.34069738,129.02,128.95,6.9852]
[1767366020798,0.34069738,129.02,128.97,0.0536007]
[1767366021793,7.32309738,129.01,128.97,0.0536007]
[1767366022598,0.34069738,129.01,128.97,0.0536007]
[1767366024093,0.34069738,129.0,128.9,204.85833794]
[1767366024300,0.34069738,129.0,128.9,91.7]
[1767366024493,0.34069738,129.0,128.92,6.9868]
[1767366024904,7.32339738,129.0,128.9,200.4011]
[1767366025103,0.05124927,128.96,128.94,0.05081498]
[1767366025403,0.34069738,129.0,128.94,0.05081498]
[1767366025600,98.6014,129.03,128.95,6.9852]
[1767366025601,98.94209738,129.03,128.95,6.9852]
[1767366025806,0.32688137,129.02,128.95,6.9852]
[1767366026206,0.30783907,129.01,128.97,0.05187673]
[1767366026408,0.30783907,129.01,128.9,200.3611]
[1767366026902,0.30783907,129.04,128.93,108.6782]
[1767366027100,0.30783907,129.04,128.95,113.11633794]
[1767366027300,0.05425643,129.01,128.98,0.05182266]
[1767366027500,0.30783907,129.06,128.96,108.6529]
[1767366027707,0.30783907,129.06,128.96,91.66]
[1767366027899,0.30783907,129.06,128.94,91.66]
[1767366028295,0.30783907,129.05,128.94,91.66]
[1767366028506,7.28843907,129.04,128.98,0.05379241]
[1767366028710,7.28843907,129.04,129.0,0.05160463]
[1767366029307,0.30783907,129.03,128.91,200.3522]
[1767366029703,0.30783907,129.02,128.94,6.9856]
[1767366029904,0.30783907,129.02,128.92,108.6828]
[1767366030215,0.30783907,129.02,128.96,0.05623151]
[1767366032612,91.6,129.04,128.96,0.05623151]
[1767366032809,0.30783907,129.04,128.99,0.05413051]
[1767366033017,0.30783907,129.07,128.99,0.05413051]
[1767366033216,0.30783907,129.07,129.02,0.05277473]
[1767366034802,0.30783907,129.1,129.02,0.05277473]
[1767366035008,0.30783907,129.1,129.05,0.05090538]
[1767366035206,103.34528272,129.12,129.05,0.05090538]
[1767366035411,103.65312179,129.12,129.05,0.05090538]
[1767366035818,0.30783907,129.11,129.05,0.05090538]
[1767366036210,0.30783907,129.09,128.99,108.6277]
[1767366036707,0.30783907,129.08,128.99,6.983]
[1767366037111,0.05555387,129.05,129.02,0.05414033]
[1767366038117,0.30783907,129.08,129.02,0.05414033]
[1767366039123,0.30783907,129.07,129.02,0.05414033]
[1767366039518,7.28743907,129.06,128.97,6.984]
[1767366039723,0.30783907,129.05,128.97,6.984]
[1767366040214,0.30783907,129.04,128.97,6.984]
[1767366040518,6.9801,129.05,128.97,6.984]
[1767366040820,0.04938268,129.02,128.99,0.05727093]
[1767366041122,0.35722175,129.02,128.95,6.9852]
[1767366042225,0.35722175,129.02,128.97,0.05780576]
[1767366043724,0.04938268,129.02,128.97,7.04190576]
[1767366043919,0.04938268,129.02,128.97,0.05780576]
[1767366044424,91.86783907,129.05,128.99,6.983]
[1767366044722,11.43653794,129.08,128.98,108.6347]
[1767366044723,7.28653907,129.08,128.98,108.6347]
[1767366045124,0.30783907,129.08,129.01,6.9819]
[1767366045322,0.05529464,129.06,129.03,0.0522101]
[1767366046127,0.36313371,129.06,128.99,6.983]
[1767366047128,0.36313371,129.06,129.01,0.05348883]
[1767366048927,0.05529464,129.06,129.01,0.05348883]
[1767366049122,0.36313371,129.06,129.01,0.05348883]
[1767366049831,0.30783907,129.04,128.95,91.62]
[1767366050519,0.30783907,129.04,128.97,6.9842]
[1767366050719,0.05879229,129.02,128.99,0.05813701]
[1767366059831,0.31879692,129.05,128.99,7.04123701]
[1767366060538,0.31879692,129.04,128.99,7.04123701]
[1767366061031,0.04991996,129.03,128.99,7.04123701]
[1767366061239,0.36871688,129.03,128.92,127.11093794]
[1767366061437,0.31879692,129.03,128.92,218.73093794]
[1767366061647,0.31879692,129.03,128.92,204.75803794]
[1767366061933,0.31879692,129.03,128.92,200.3002]
[1767366062134,6.9816,129.02,128.96,6.9847]
[1767366062334,0.31879692,129.06,128.98,0.0531412]
[1767366062630,0.31879692,129.06,128.96,108.6511]
[1767366062835,0.31879692,129.06,129.0,6.9824]
[1767366063427,0.05798824,129.04,129.02,0.05072522]
[1767366063834,0.05798824,129.04,128.98,6.9832]
[1767366063835,0.37678516,129.04,128.98,6.9832]
[1767366064737,0.37678516,129.04,129.0,0.05293287]
[1767366064933,0.05319756,129.03,129.0,0.05293287]
[1767366065534,0.37199448,129.03,128.97,6.9838]
[1767366066529,0.37199448,129.03,128.94,200.286]
[1767366066734,0.05635409,129.0,128.99,0.05270134]
[1767366067233,0.05635409,129.0,128.96,6.9847]
[1767366067439,0.05635409,129.0,128.94,91.62]
[1767366068334,0.05635409,129.0,128.96,0.05209936]
[1767366068538,0.05067032,128.99,128.96,0.05209936]
[1767366069041,0.31879692,129.03,128.96,0.05209936]
[1767366069440,0.31879692,129.06,128.96,0.05209936]
[1767366069628,7.29949692,129.04,128.94,108.6656]
[1767366069832,0.31879692,129.03,128.94,108.6656]
[1767366070039,0.05552695,129.0,128.97,0.05149886]
[1767366071345,7.29909692,129.05,128.98,6.9837]
[1767366071638,0.31879692,129.04,128.95,91.62]
[1767366071944,0.31879692,129.04,128.97,6.9842]
[1767366072443,0.05782991,129.02,128.99,0.05558464]
[1767366074238,0.37662683,129.02,128.95,6.985]
[1767366075249,0.37662683,129.02,128.97,0.05610555]
[1767366076350,0.05782991,129.02,128.97,0.05610555]
[1767366077042,0.05782991,129.02,128.99,6.9831]
[1767366077646,0.05782991,129.02,128.97,7.03990555]
[1767366077950,0.05782991,129.02,128.97,0.05610555]
[1767366078349,0.31879692,129.09,128.98,108.6291]
[1767366078750,0.31879692,129.09,129.0,108.6189]
[1767366079046,0.31879692,129.09,129.02,6.9814]
[1767366079244,0.31879692,129.09,129.01,91.62]
[1767366079446,12.06407964,129.12,129.04,7.03382615]
[1767366079649,12.06407964,129.12,129.04,6.9801]
[1767366080645,0.05003677,129.09,129.07,0.05128867]
[1767366082854,11.74528272,129.12,129.07,0.05128867]
[1767366083059,0.01828272,129.12,129.07,108.60798867]
[1767366083253,0.01828272,129.12,129.07,200.20798867]
[1767366083861,0.05179491,129.11,129.09,6.9776]
[1767366084555,0.05179491,129.11,129.07,7.02988867]
[1767366086456,0.05179491,129.11,129.08,6.9781]
[1767366086654,0.01828272,129.12,129.08,6.9781]
[1767366087644,0.01828272,129.12,129.07,0.05128867]
[1767366087950,0.33977366,129.16,129.07,0.05128867]
[1767366088151,0.33977366,129.16,129.1,0.05358695]
[1767366088356,0.33977366,129.2,129.1,91.63358695]
[1767366088558,0.33977366,129.2,129.14,0.05575778]
[1767366090869,0.33977366,129.2,129.09,115.77703157]
[1767366090870,0.33977366,129.19,129.09,7.24003157]
[1767366091160,0.33977366,129.18,129.08,91.56]
[1767366091359,0.33977366,129.18,129.09,115.78263157]
[1767366091752,0.33977366,129.18,129.11,6.9765]
[1767366091947,0.33977366,129.18,129.09,7.24003157]
[1767366091948,0.04894742,129.16,129.13,0.05085544]
[1767366092162,0.04894742,129.16,129.08,91.56]
[1767366092365,0.33977366,129.18,129.08,91.56]
[1767366092567,0.33977366,129.16,129.06,115.80293157]
[1767366092752,0.33977366,129.16,129.07,91.56]
[1767366093057,0.05855704,129.13,129.1,0.05899882]
[1767366094163,0.3983307,129.13,129.06,91.56]
[1767366094364,7.31557366,129.13,129.05,6.9797]
[1767366095165,0.05148417,129.1,129.08,0.05556784]
[1767366096068,0.05148417,129.1,129.03,91.56]
[1767366097063,0.05148417,129.1,129.05,0.05307988]
[1767366097766,0.05148417,129.1,129.05,7.03287988]
[1767366098165,0.05148417,129.1,129.05,0.05307988]
[1767366098372,6.9749,129.15,129.07,6.9787]
[1767366098662,7.31467366,129.15,129.07,6.9787]
[1767366099060,0.33977366,129.12,129.04,91.56]
[1767366099259,0.33977366,129.15,129.04,200.1431]
[1767366099460,0.33977366,129.15,129.07,0.05287826]
[1767366099661,0.33977366,129.15,129.04,200.1431]
[1767366100463,0.05138513,129.11,129.08,0.05890131]
[1767366101264,0.39115879,129.11,129.04,91.56]
[1767366101466,0.39115879,129.11,129.0,108.615]
[1767366101668,0.33977366,129.11,128.99,108.6217]
[1767366101869,0.33977366,129.1,128.99,91.56]
[1767366102260,0.33977366,129.1,129.03,0.05482956]
[1767366102464,0.05231198,129.06,129.03,0.05482956]
[1767366102668,0.05231198,129.06,129.0,6.9825]